[Event "Titled Tuesday Blitz June 13 Early 2023"]
[White "Skvortsov, Andrei"]
[Black "Shubenkova, Veronika"]
[WhiteFideId "24108600"]
[BlackFideId "44124040"]
[WhiteElo "2259"]
[BlackElo "2060"]
[Result "1-0"]
[Round "3"]
[TimeControl "180+2"]
[Date "2023.06.13"]
[WhiteClock "0:00:10"]
[BlackClock "0:00:03"]
[Board "64"]

1. e4 {[%clk 0:03:00]}  e6 {[%clk 0:02:59]} 2. d4 {[%clk 0:03:01]}  d5 {[%clk 0:02:59]} 3. exd5 {[%clk 0:03:02]}  exd5 {[%clk 0:03:00]} 4. Nf3 {[%clk 0:03:02]}  Nf6 {[%clk 0:03:00]} 5. Bd3 {[%clk 0:03:01]}  Bd6 {[%clk 0:03:00]} 6. Qe2+ {[%clk 0:03:01]}  Qe7 {[%clk 0:02:59]} 7. Qxe7+ {[%clk 0:03:01]}  Bxe7 {[%clk 0:03:00]} 8. Bf4 {[%clk 0:03:02]}  c6 {[%clk 0:02:59]} 9. O-O {[%clk 0:03:02]}  O-O {[%clk 0:02:55]} 10. Re1 {[%clk 0:03:00]}  Re8 {[%clk 0:02:55]} 11. Nbd2 {[%clk 0:02:57]}  Nbd7 {[%clk 0:02:55]} 12. Ne5 {[%clk 0:02:57]}  Nxe5 {[%clk 0:02:50]} 13. Rxe5 {[%clk 0:02:51]}  Be6 {[%clk 0:02:47]} 14. Re2 {[%clk 0:02:47]}  Rad8 {[%clk 0:02:42]} 15. Rae1 {[%clk 0:02:44]}  h6 {[%clk 0:02:39]} 16. Nf3 {[%clk 0:02:38]}  g5 {[%clk 0:02:18]} 17. Bc1 {[%clk 0:02:33]}  Kg7 {[%clk 0:02:12]} 18. c3 {[%clk 0:02:29]}  Bd6 {[%clk 0:02:11]} 19. Ne5 {[%clk 0:02:28]}  Bxe5 {[%clk 0:02:10]} 20. Rxe5 {[%clk 0:02:27]}  Bd7 {[%clk 0:01:55]} 21. f3 {[%clk 0:02:19]}  Rxe5 {[%clk 0:01:47]} 22. Rxe5 {[%clk 0:01:45]}  Re8 {[%clk 0:01:44]} 23. Kf2 {[%clk 0:01:41]}  Rxe5 {[%clk 0:01:44]} 24. dxe5 {[%clk 0:01:42]}  Ne8 {[%clk 0:01:43]} 25. Be3 {[%clk 0:01:40]}  b6 {[%clk 0:01:42]} 26. c4 {[%clk 0:01:31]}  Nc7 {[%clk 0:01:41]} 27. g3 {[%clk 0:01:15]}  dxc4 {[%clk 0:01:35]} 28. Bxc4 {[%clk 0:01:14]}  Be6 {[%clk 0:01:35]} 29. b3 {[%clk 0:01:08]}  Bxc4 {[%clk 0:01:24]} 30. bxc4 {[%clk 0:01:09]}  Kg6 {[%clk 0:01:23]} 31. g4 {[%clk 0:01:05]}  Ne6 {[%clk 0:01:18]} 32. Ke2 {[%clk 0:01:04]}  f5 {[%clk 0:01:13]} 33. exf6 {[%clk 0:01:04]}  Kxf6 {[%clk 0:01:13]} 34. Bd2 {[%clk 0:00:49]}  Ke5 {[%clk 0:00:48]} 35. Ke3 {[%clk 0:00:45]}  Kd6 {[%clk 0:00:34]} 36. Bb4+ {[%clk 0:00:42]}  Ke5 {[%clk 0:00:30]} 37. Ba3 {[%clk 0:00:32]}  a5 {[%clk 0:00:22]} 38. Be7 {[%clk 0:00:27]}  b5 {[%clk 0:00:21]} 39. cxb5 {[%clk 0:00:23]}  cxb5 {[%clk 0:00:21]} 40. Ba3 {[%clk 0:00:24]}  Kd5 {[%clk 0:00:19]} 41. Bb2 {[%clk 0:00:23]}  Kc4 {[%clk 0:00:19]} 42. Ke4 {[%clk 0:00:23]}  b4 {[%clk 0:00:19]} 43. Kf5 {[%clk 0:00:20]}  Nc5 {[%clk 0:00:18]} 44. Kg6 {[%clk 0:00:19]}  Nd3 {[%clk 0:00:18]} 45. Bf6 {[%clk 0:00:18]}  Ne1 {[%clk 0:00:17]} 46. Kxh6 {[%clk 0:00:15]}  Nxf3 {[%clk 0:00:17]} 47. h3 {[%clk 0:00:15]}  a4 {[%clk 0:00:16]} 48. Kh5 {[%clk 0:00:11]}  a3 {[%clk 0:00:14]} 49. Bg7 {[%clk 0:00:09]}  Kd3 {[%clk 0:00:14]} 50. Bf8 {[%clk 0:00:07]}  Kc4 {[%clk 0:00:14]} 51. Bg7 {[%clk 0:00:07]}  Kd3 {[%clk 0:00:14]} 52. Bf8 {[%clk 0:00:07]}  Kc3 {[%clk 0:00:11]} 53. Bg7+ {[%clk 0:00:07]}  Nd4 {[%clk 0:00:07]} 54. Bf8 {[%clk 0:00:04]}  Ne6 {[%clk 0:00:05]} 55. Bd6 {[%clk 0:00:02]}  Nf4+ {[%clk 0:00:04]} 56. Kxg5 {[%clk 0:00:02]}  Nxh3+ {[%clk 0:00:04]} 57. Kh4 {[%clk 0:00:03]}  Nf2 {[%clk 0:00:04]} 58. Be5+ {[%clk 0:00:04]}  Kc4 {[%clk 0:00:03]} 59. Kg3 {[%clk 0:00:05]}  Nd3 {[%clk 0:00:03]} 60. Ba1 {[%clk 0:00:05]}  Nc1 {[%clk 0:00:03]} 61. g5 {[%clk 0:00:05]}  Nxa2 {[%clk 0:00:03]} 62. g6 {[%clk 0:00:06]}  b3 {[%clk 0:00:03]} 63. g7 {[%clk 0:00:06]}  Kd3 {[%clk 0:00:02]} 64. g8=Q {[%clk 0:00:07]}  Kc2 {[%clk 0:00:02]} 65. Qg6+ {[%clk 0:00:08]}  Kc1 {[%clk 0:00:02]} 66. Qc6+ {[%clk 0:00:08]}  Kb1 {[%clk 0:00:02]} 67. Be5 {[%clk 0:00:09]}  b2 {[%clk 0:00:01]} 68. Qe4+ {[%clk 0:00:10]}  Ka1 {[%clk 0:00:01]} 69. Qc2 {[%clk 0:00:10]}  Nc1 {[%clk 0:00:02]} 70. Qxc1+ {[%clk 0:00:10]}  Ka2 {[%clk 0:00:03]} 71. Qc4+ {[%clk 0:00:11]}  Ka1 {[%clk 0:00:03]} 72. Qc3 {[%clk 0:00:10]}  Ka2 {[%clk 0:00:03]} 73. Qc2 {[%clk 0:00:10]}  Ka1 {[%clk 0:00:03]} 74. Qb3 {[%clk 0:00:10]}  a2 {[%clk 0:00:03]} 75. Qxb2# {[%clk 0:00:10]} 1-0


[Site "https://www.chess.com"]

[Event "Titled Tuesday Blitz June 13 Early 2023"]
[White "Grossboss19"]
[Black "Arabidze, Meri"]
[BlackFideId "13604040"]
[WhiteElo "2432"]
[BlackElo "2405"]
[Result "0-1"]
[Round "3"]
[TimeControl "180+2"]
[Date "2023.06.13"]
[WhiteClock "0:00:00"]
[BlackClock "0:00:32"]
[Board "65"]

1. c4 {[%clk 0:02:59]}  e6 {[%clk 0:02:59]} 2. Nc3 {[%clk 0:02:57]}  d5 {[%clk 0:02:59]} 3. d4 {[%clk 0:02:55]}  Nf6 {[%clk 0:02:59]} 4. cxd5 {[%clk 0:02:56]}  exd5 {[%clk 0:03:00]} 5. Bg5 {[%clk 0:02:56]}  c6 {[%clk 0:03:01]} 6. e3 {[%clk 0:02:55]}  Be7 {[%clk 0:03:01]} 7. Bd3 {[%clk 0:02:54]}  Nbd7 {[%clk 0:03:00]} 8. Qc2 {[%clk 0:02:53]}  O-O {[%clk 0:02:57]} 9. h3 {[%clk 0:02:52]}  Re8 {[%clk 0:02:57]} 10. Nf3 {[%clk 0:02:46]}  Nf8 {[%clk 0:02:57]} 11. O-O {[%clk 0:02:44]}  h6 {[%clk 0:02:58]} 12. Bf4 {[%clk 0:02:44]}  Bd6 {[%clk 0:02:57]} 13. Ne5 {[%clk 0:02:41]}  Qe7 {[%clk 0:02:55]} 14. Bh2 {[%clk 0:02:39]}  a6 {[%clk 0:02:40]} 15. Rae1 {[%clk 0:02:36]}  Be6 {[%clk 0:02:38]} 16. f4 {[%clk 0:02:32]}  c5 {[%clk 0:02:35]} 17. Qf2 {[%clk 0:02:24]}  b5 {[%clk 0:02:32]} 18. f5 {[%clk 0:02:20]}  Bd7 {[%clk 0:02:32]} 19. Qf3 {[%clk 0:02:18]}  Rad8 {[%clk 0:02:14]} 20. Nxd5 {[%clk 0:01:59]}  Nxd5 {[%clk 0:02:15]} 21. Qxd5 {[%clk 0:01:59]}  Bxe5 {[%clk 0:01:59]} 22. Qxe5 {[%clk 0:01:47]}  Qg5 {[%clk 0:01:59]} 23. Qf4 {[%clk 0:01:41]}  Bc6 {[%clk 0:01:53]} 24. Qxg5 {[%clk 0:01:38]}  hxg5 {[%clk 0:01:54]} 25. Rf2 {[%clk 0:01:13]}  cxd4 {[%clk 0:01:51]} 26. e4 {[%clk 0:01:14]}  f6 {[%clk 0:01:44]} 27. Rfe2 {[%clk 0:01:13]}  Nd7 {[%clk 0:01:44]} 28. e5 {[%clk 0:01:13]}  Nxe5 {[%clk 0:01:43]} 29. Bxe5 {[%clk 0:01:12]}  fxe5 {[%clk 0:01:43]} 30. Rxe5 {[%clk 0:01:13]}  Kf7 {[%clk 0:01:24]} 31. Kf2 {[%clk 0:01:05]}  Bd5 {[%clk 0:01:18]} 32. b3 {[%clk 0:00:19]}  Rxe5 {[%clk 0:01:18]} 33. Rxe5 {[%clk 0:00:20]}  Kf6 {[%clk 0:01:19]} 34. Re2 {[%clk 0:00:19]}  Rc8 {[%clk 0:01:17]} 35. Rc2 {[%clk 0:00:20]}  Rc3 {[%clk 0:01:12]} 36. Rxc3 {[%clk 0:00:19]}  dxc3 {[%clk 0:01:13]} 37. b4 {[%clk 0:00:17]}  Bxa2 {[%clk 0:01:12]} 38. Bc2 {[%clk 0:00:17]}  Bd5 {[%clk 0:01:10]} 39. g3 {[%clk 0:00:15]}  Ke5 {[%clk 0:01:10]} 40. Ke3 {[%clk 0:00:15]}  Bc4 {[%clk 0:01:07]} 41. h4 {[%clk 0:00:11]}  gxh4 {[%clk 0:01:05]} 42. gxh4 {[%clk 0:00:12]}  Bd5 {[%clk 0:00:48]} 43. h5 {[%clk 0:00:10]}  Bf7 {[%clk 0:00:45]} 44. Bd1 {[%clk 0:00:08]}  Bc4 {[%clk 0:00:41]} 45. Bc2 {[%clk 0:00:06]}  Bf1 {[%clk 0:00:35]} 46. f6 {[%clk 0:00:05]}  Kxf6 {[%clk 0:00:32]} 47. Kd4 {[%clk 0:00:06]}  Be2 {[%clk 0:00:32]} 48. Kxc3 {[%clk 0:00:05]}  Bxh5 {[%clk 0:00:32]} 49. Kd4 {[%clk 0:00:06]}  Be2 {[%clk 0:00:31]} 50. Kc5 {[%clk 0:00:06]}  g5 {[%clk 0:00:31]} 51. Kb6 {[%clk 0:00:06]}  g4 {[%clk 0:00:31]} 52. Kxa6 {[%clk 0:00:05]}  Ke5 {[%clk 0:00:32]} 53. Bg6 {[%clk 0:00:00]}  g3 {[%clk 0:00:32]} 0-1


[Site "https://www.chess.com"]

[Event "Titled Tuesday Blitz June 13 Early 2023"]
[White "Erigaisi Arjun"]
[Black "Bethke, Richard"]
[WhiteFideId "35009192"]
[BlackFideId "12959243"]
[WhiteElo "2719"]
[BlackElo "2369"]
[Result "1-0"]
[Round "3"]
[TimeControl "180+2"]
[Date "2023.06.13"]
[WhiteClock "0:00:44"]
[BlackClock "0:00:04"]
[Board "67"]

1. g4 {[%clk 0:03:00]}  d5 {[%clk 0:02:58]} 2. e3 {[%clk 0:02:59]}  e5 {[%clk 0:02:58]} 3. Bg2 {[%clk 0:03:00]}  Nc6 {[%clk 0:02:58]} 4. h3 {[%clk 0:02:58]}  Bc5 {[%clk 0:02:55]} 5. Ne2 {[%clk 0:02:57]}  Nge7 {[%clk 0:02:54]} 6. d4 {[%clk 0:02:58]}  Bb6 {[%clk 0:02:53]} 7. Nbc3 {[%clk 0:02:56]}  h5 {[%clk 0:02:52]} 8. gxh5 {[%clk 0:02:53]}  Rxh5 {[%clk 0:02:52]} 9. Ng3 {[%clk 0:02:53]}  Rh4 {[%clk 0:02:48]} 10. dxe5 {[%clk 0:02:53]}  Nxe5 {[%clk 0:02:48]} 11. Nxd5 {[%clk 0:02:45]}  Bxh3 {[%clk 0:02:38]} 12. Rxh3 {[%clk 0:02:23]}  Rxh3 {[%clk 0:02:37]} 13. Bxh3 {[%clk 0:02:06]}  Qxd5 {[%clk 0:02:35]} 14. Qxd5 {[%clk 0:02:05]}  Nxd5 {[%clk 0:02:36]} 15. Ke2 {[%clk 0:02:06]}  Rd8 {[%clk 0:02:30]} 16. a3 {[%clk 0:01:58]}  g6 {[%clk 0:02:28]} 17. e4 {[%clk 0:01:53]}  Ne7 {[%clk 0:02:20]} 18. Bg5 {[%clk 0:01:50]}  Nc4 {[%clk 0:02:09]} 19. b3 {[%clk 0:01:48]}  Bd4 {[%clk 0:02:09]} 20. c3 {[%clk 0:01:36]}  Bxc3 {[%clk 0:02:07]} 21. Rc1 {[%clk 0:01:37]}  Nxa3 {[%clk 0:01:35]} 22. Rxc3 {[%clk 0:01:35]}  Nb5 {[%clk 0:01:35]} 23. Rd3 {[%clk 0:01:30]}  Nd4+ {[%clk 0:01:28]} 24. Kf1 {[%clk 0:01:28]}  c5 {[%clk 0:01:27]} 25. Ne2 {[%clk 0:01:26]}  b5 {[%clk 0:01:11]} 26. Nxd4 {[%clk 0:01:25]}  cxd4 {[%clk 0:01:11]} 27. Bf6 {[%clk 0:01:20]}  a5 {[%clk 0:01:12]} 28. Ke2 {[%clk 0:01:13]}  a4 {[%clk 0:01:01]} 29. bxa4 {[%clk 0:01:14]}  bxa4 {[%clk 0:01:02]} 30. Ra3 {[%clk 0:01:13]}  d3+ {[%clk 0:00:50]} 31. Kd2 {[%clk 0:01:13]}  Rd6 {[%clk 0:00:49]} 32. Be5 {[%clk 0:01:13]}  Ra6 {[%clk 0:00:47]} 33. Kxd3 {[%clk 0:01:11]}  f5 {[%clk 0:00:48]} 34. f4 {[%clk 0:01:06]}  fxe4+ {[%clk 0:00:42]} 35. Kxe4 {[%clk 0:01:07]}  Kf7 {[%clk 0:00:40]} 36. Bf1 {[%clk 0:01:07]}  Ra8 {[%clk 0:00:37]} 37. Bb5 {[%clk 0:01:06]}  Nc8 {[%clk 0:00:28]} 38. Rxa4 {[%clk 0:00:59]}  Rxa4+ {[%clk 0:00:28]} 39. Bxa4 {[%clk 0:01:00]}  Nb6 {[%clk 0:00:28]} 40. Bb5 {[%clk 0:00:51]}  Nc8 {[%clk 0:00:27]} 41. Bc7 {[%clk 0:00:46]}  Ke6 {[%clk 0:00:21]} 42. Be8 {[%clk 0:00:43]}  Ne7 {[%clk 0:00:09]} 43. Be5 {[%clk 0:00:39]}  g5 {[%clk 0:00:02]} 44. fxg5 {[%clk 0:00:40]}  Nf5 {[%clk 0:00:02]} 45. Bd7+ {[%clk 0:00:40]}  Kxd7 {[%clk 0:00:02]} 46. Kxf5 {[%clk 0:00:41]}  Ke7 {[%clk 0:00:03]} 47. Kg6 {[%clk 0:00:41]}  Kf8 {[%clk 0:00:04]} 48. Kh7 {[%clk 0:00:42]}  Kf7 {[%clk 0:00:04]} 49. g6+ {[%clk 0:00:43]}  Ke6 {[%clk 0:00:04]} 50. g7 {[%clk 0:00:44]} 1-0


[Site "https://www.chess.com"]

[Event "Titled Tuesday Blitz June 13 Early 2023"]
[White "Nguyen, Ngoc Truong Son"]
[Black "Rutvij09"]
[WhiteFideId "12401110"]
[WhiteElo "2556"]
[BlackElo "2518"]
[Result "0-1"]
[Round "3"]
[TimeControl "180+2"]
[Date "2023.06.13"]
[WhiteClock "0:01:28"]
[BlackClock "0:02:06"]
[Board "72"]

1. d4 {[%clk 0:02:57]}  d6 {[%clk 0:02:59]} 2. e4 {[%clk 0:02:56]}  g6 {[%clk 0:02:59]} 3. Nc3 {[%clk 0:02:56]}  Bg7 {[%clk 0:03:00]} 4. h4 {[%clk 0:02:54]}  Nf6 {[%clk 0:02:58]} 5. Bg5 {[%clk 0:02:51]}  Nbd7 {[%clk 0:02:53]} 6. Qd2 {[%clk 0:02:51]}  h6 {[%clk 0:02:53]} 7. Be3 {[%clk 0:02:46]}  Ng4 {[%clk 0:02:53]} 8. Bf4 {[%clk 0:02:41]}  e5 {[%clk 0:02:47]} 9. dxe5 {[%clk 0:02:41]}  dxe5 {[%clk 0:02:48]} 10. Bg3 {[%clk 0:02:42]}  h5 {[%clk 0:02:46]} 11. Nh3 {[%clk 0:02:37]}  Bh6 {[%clk 0:02:43]} 12. Qd1 {[%clk 0:02:24]}  c6 {[%clk 0:02:41]} 13. Be2 {[%clk 0:02:15]}  Qb6 {[%clk 0:02:40]} 14. Rb1 {[%clk 0:02:09]}  Nc5 {[%clk 0:02:29]} 15. b4 {[%clk 0:01:56]}  Ne6 {[%clk 0:02:28]} 16. Bxg4 {[%clk 0:01:39]}  hxg4 {[%clk 0:02:29]} 17. Qxg4 {[%clk 0:01:39]}  Qd4 {[%clk 0:02:09]} 18. Ne2 {[%clk 0:01:36]}  Qd2+ {[%clk 0:02:08]} 19. Kf1 {[%clk 0:01:28]}  Nd4 {[%clk 0:02:06]} 0-1


[Site "https://www.chess.com"]

[Event "Titled Tuesday Blitz June 13 Early 2023"]
[White "Khater, Sherif"]
[Black "Suyarov, Mukhammadzokhid"]
[WhiteFideId "2034280"]
[BlackFideId "14210495"]
[WhiteElo "2516"]
[BlackElo "2361"]
[Result "1-0"]
[Round "3"]
[TimeControl "180+2"]
[Date "2023.06.13"]
[WhiteClock "0:00:33"]
[BlackClock "0:00:20"]
[Board "73"]

1. e4 {[%clk 0:03:00]}  e6 {[%clk 0:02:58]} 2. Nc3 {[%clk 0:03:00]}  d5 {[%clk 0:02:54]} 3. d3 {[%clk 0:03:01]}  Nf6 {[%clk 0:02:52]} 4. Qe2 {[%clk 0:03:00]}  Be7 {[%clk 0:02:51]} 5. g3 {[%clk 0:03:01]}  O-O {[%clk 0:02:51]} 6. Bg2 {[%clk 0:03:02]}  c5 {[%clk 0:02:51]} 7. Nf3 {[%clk 0:02:58]}  Nc6 {[%clk 0:02:52]} 8. O-O {[%clk 0:02:58]}  a6 {[%clk 0:02:51]} 9. h3 {[%clk 0:02:59]}  b5 {[%clk 0:02:51]} 10. Kh2 {[%clk 0:02:53]}  b4 {[%clk 0:02:48]} 11. Nd1 {[%clk 0:02:52]}  a5 {[%clk 0:02:47]} 12. e5 {[%clk 0:02:49]}  Nd7 {[%clk 0:02:47]} 13. g4 {[%clk 0:02:43]}  Ba6 {[%clk 0:02:45]} 14. Re1 {[%clk 0:02:42]}  a4 {[%clk 0:02:45]} 15. Bf4 {[%clk 0:02:41]}  Rc8 {[%clk 0:02:41]} 16. Qd2 {[%clk 0:02:37]}  Qb6 {[%clk 0:02:38]} 17. b3 {[%clk 0:02:35]}  a3 {[%clk 0:02:35]} 18. h4 {[%clk 0:02:31]}  Nd4 {[%clk 0:02:32]} 19. Ne3 {[%clk 0:02:20]}  Rc7 {[%clk 0:02:30]} 20. h5 {[%clk 0:02:19]}  Rfc8 {[%clk 0:02:28]} 21. g5 {[%clk 0:02:17]}  Nxf3+ {[%clk 0:02:26]} 22. Bxf3 {[%clk 0:02:16]}  c4 {[%clk 0:02:26]} 23. bxc4 {[%clk 0:02:04]}  dxc4 {[%clk 0:02:26]} 24. d4 {[%clk 0:02:05]}  b3 {[%clk 0:01:47]} 25. d5 {[%clk 0:01:44]}  c3 {[%clk 0:01:26]} 26. Qd1 {[%clk 0:01:42]}  Qb4 {[%clk 0:01:22]} 27. Kg3 {[%clk 0:01:37]}  b2 {[%clk 0:01:17]} 28. Rb1 {[%clk 0:01:36]}  Rc4 {[%clk 0:01:16]} 29. Nxc4 {[%clk 0:01:32]}  Bxc4 {[%clk 0:01:17]} 30. dxe6 {[%clk 0:01:30]}  Bxe6 {[%clk 0:01:18]} 31. Bd5 {[%clk 0:01:24]}  Nf8 {[%clk 0:01:07]} 32. Re4 {[%clk 0:01:18]}  Qb5 {[%clk 0:01:03]} 33. Rd4 {[%clk 0:00:57]}  Bc5 {[%clk 0:00:58]} 34. Rd3 {[%clk 0:00:56]}  Bxd5 {[%clk 0:00:58]} 35. Rxd5 {[%clk 0:00:55]}  Ne6 {[%clk 0:00:59]} 36. Be3 {[%clk 0:00:54]}  g6 {[%clk 0:00:57]} 37. h6 {[%clk 0:00:53]}  Qb4 {[%clk 0:00:54]} 38. Qd3 {[%clk 0:00:48]}  Be7 {[%clk 0:00:51]} 39. f4 {[%clk 0:00:48]}  Qb7 {[%clk 0:00:45]} 40. Rd7 {[%clk 0:00:47]}  Qb4 {[%clk 0:00:43]} 41. Qd5 {[%clk 0:00:40]}  Bf8 {[%clk 0:00:41]} 42. Rxf7 {[%clk 0:00:37]}  Kxf7 {[%clk 0:00:41]} 43. Qd7+ {[%clk 0:00:37]}  Be7 {[%clk 0:00:40]} 44. Qxc8 {[%clk 0:00:37]}  Qe4 {[%clk 0:00:40]} 45. Qxc3 {[%clk 0:00:33]}  Bb4 {[%clk 0:00:28]} 46. Qd3 {[%clk 0:00:33]}  Qxd3 {[%clk 0:00:24]} 47. cxd3 {[%clk 0:00:34]}  Bc5 {[%clk 0:00:25]} 48. Kf3 {[%clk 0:00:33]}  Ke7 {[%clk 0:00:21]} 49. Ke4 {[%clk 0:00:32]}  Bxe3 {[%clk 0:00:20]} 50. Kxe3 {[%clk 0:00:33]}  Nc7 {[%clk 0:00:20]} 51. d4 {[%clk 0:00:32]}  Nd5+ {[%clk 0:00:20]} 52. Kd3 {[%clk 0:00:32]}  Nxf4+ {[%clk 0:00:17]} 53. Kc3 {[%clk 0:00:31]}  Ne2+ {[%clk 0:00:18]} 54. Kb3 {[%clk 0:00:32]}  Nxd4+ {[%clk 0:00:18]} 55. Kxa3 {[%clk 0:00:32]}  Nf3 {[%clk 0:00:19]} 56. Kxb2 {[%clk 0:00:32]}  Nxg5 {[%clk 0:00:20]} 57. a4 {[%clk 0:00:32]}  Nf7 {[%clk 0:00:20]} 58. Kc3 {[%clk 0:00:32]}  Nxe5 {[%clk 0:00:21]} 59. a5 {[%clk 0:00:32]}  Nc6 {[%clk 0:00:21]} 60. a6 {[%clk 0:00:33]}  Kf6 {[%clk 0:00:20]} 61. Rb6 {[%clk 0:00:33]} 1-0


[Site "https://www.chess.com"]

[Event "Titled Tuesday Blitz June 13 Early 2023"]
[White "Rahman, Masruri"]
[Black "Bilan, Danila"]
[WhiteFideId "7101163"]
[BlackFideId "24161918"]
[WhiteElo "2256"]
[BlackElo "2146"]
[Result "1-0"]
[Round "3"]
[TimeControl "180+2"]
[Date "2023.06.13"]
[WhiteClock "0:00:11"]
[BlackClock "0:00:03"]
[Board "74"]

1. d4 {[%clk 0:02:57]}  d5 {[%clk 0:03:00]} 2. Bf4 {[%clk 0:02:58]}  Nf6 {[%clk 0:02:59]} 3. e3 {[%clk 0:02:58]}  c5 {[%clk 0:03:00]} 4. Nc3 {[%clk 0:02:58]}  e6 {[%clk 0:02:52]} 5. Nb5 {[%clk 0:02:57]}  Na6 {[%clk 0:02:52]} 6. c3 {[%clk 0:02:57]}  Be7 {[%clk 0:02:49]} 7. Nf3 {[%clk 0:02:56]}  O-O {[%clk 0:02:44]} 8. Ne5 {[%clk 0:02:55]}  Ne4 {[%clk 0:02:39]} 9. Bd3 {[%clk 0:02:55]}  Nd6 {[%clk 0:02:27]} 10. a4 {[%clk 0:02:53]}  Nxb5 {[%clk 0:02:23]} 11. axb5 {[%clk 0:02:52]}  Nb8 {[%clk 0:02:23]} 12. Qh5 {[%clk 0:02:50]}  g6 {[%clk 0:01:46]} 13. Qg4 {[%clk 0:02:02]}  Nd7 {[%clk 0:01:42]} 14. h4 {[%clk 0:01:59]}  Nxe5 {[%clk 0:01:29]} 15. dxe5 {[%clk 0:01:58]}  f5 {[%clk 0:01:14]} 16. Qg3 {[%clk 0:01:51]}  Kf7 {[%clk 0:01:09]} 17. Bg5 {[%clk 0:01:48]}  Bd7 {[%clk 0:01:01]} 18. f4 {[%clk 0:01:40]}  h5 {[%clk 0:00:55]} 19. c4 {[%clk 0:01:32]}  dxc4 {[%clk 0:00:27]} 20. Bxc4 {[%clk 0:01:31]}  a6 {[%clk 0:00:28]} 21. bxa6 {[%clk 0:01:14]}  b5 {[%clk 0:00:28]} 22. Be2 {[%clk 0:01:12]}  Bc6 {[%clk 0:00:21]} 23. Bxe7 {[%clk 0:01:07]}  Qxe7 {[%clk 0:00:19]} 24. O-O {[%clk 0:01:02]}  Rfd8 {[%clk 0:00:16]} 25. Rfd1 {[%clk 0:01:00]}  c4 {[%clk 0:00:16]} 26. Bf3 {[%clk 0:00:52]}  Rxd1+ {[%clk 0:00:16]} 27. Bxd1 {[%clk 0:00:45]}  Qb4 {[%clk 0:00:14]} 28. Qf2 {[%clk 0:00:42]}  Rd8 {[%clk 0:00:12]} 29. Bf3 {[%clk 0:00:34]}  Rd2 {[%clk 0:00:12]} 30. Bxc6 {[%clk 0:00:22]}  Rxf2 {[%clk 0:00:12]} 31. a7 {[%clk 0:00:22]}  Rxb2 {[%clk 0:00:06]} 32. a8=Q {[%clk 0:00:22]}  Rb1+ {[%clk 0:00:06]} 33. Rxb1 {[%clk 0:00:15]}  Qxb1+ {[%clk 0:00:06]} 34. Kh2 {[%clk 0:00:16]}  Qe1 {[%clk 0:00:07]} 35. Qe8+ {[%clk 0:00:12]}  Kg7 {[%clk 0:00:07]} 36. Qe7+ {[%clk 0:00:12]}  Kh6 {[%clk 0:00:07]} 37. Qg5+ {[%clk 0:00:13]}  Kg7 {[%clk 0:00:07]} 38. Be8 {[%clk 0:00:12]}  Kf8 {[%clk 0:00:04]} 39. Bxg6 {[%clk 0:00:11]}  Qb4 {[%clk 0:00:04]} 40. Qf6+ {[%clk 0:00:10]}  Kg8 {[%clk 0:00:03]} 41. Qf7+ {[%clk 0:00:11]} 1-0


[Site "https://www.chess.com"]

[Event "Titled Tuesday Blitz June 13 Early 2023"]
[White "Berezin, Viktor"]
[Black "Perez Ponsa, Federico"]
[WhiteFideId "14107872"]
[BlackFideId "117927"]
[WhiteElo "2310"]
[BlackElo "2590"]
[Result "0-1"]
[Round "3"]
[TimeControl "180+2"]
[Date "2023.06.13"]
[WhiteClock "0:00:14"]
[BlackClock "0:01:29"]
[Board "75"]

1. d4 {[%clk 0:02:58]}  Nf6 {[%clk 0:02:59]} 2. Nf3 {[%clk 0:02:57]}  g6 {[%clk 0:03:00]} 3. g3 {[%clk 0:02:57]}  Bg7 {[%clk 0:03:00]} 4. Bg2 {[%clk 0:02:58]}  O-O {[%clk 0:03:01]} 5. O-O {[%clk 0:02:58]}  d6 {[%clk 0:03:01]} 6. a4 {[%clk 0:02:59]}  Nbd7 {[%clk 0:03:00]} 7. Nc3 {[%clk 0:02:59]}  c6 {[%clk 0:03:00]} 8. a5 {[%clk 0:03:00]}  Qc7 {[%clk 0:03:01]} 9. e4 {[%clk 0:02:57]}  e5 {[%clk 0:03:01]} 10. h3 {[%clk 0:02:56]}  Rb8 {[%clk 0:03:01]} 11. dxe5 {[%clk 0:02:41]}  dxe5 {[%clk 0:03:02]} 12. Be3 {[%clk 0:02:41]}  b5 {[%clk 0:03:02]} 13. axb6 {[%clk 0:02:39]}  axb6 {[%clk 0:03:02]} 14. Nd2 {[%clk 0:02:35]}  b5 {[%clk 0:03:00]} 15. Ra7 {[%clk 0:02:29]}  Rb7 {[%clk 0:02:55]} 16. Rxb7 {[%clk 0:02:29]}  Bxb7 {[%clk 0:02:55]} 17. Nb3 {[%clk 0:02:28]}  Ra8 {[%clk 0:02:52]} 18. Qd2 {[%clk 0:02:20]}  b4 {[%clk 0:02:50]} 19. Ne2 {[%clk 0:02:12]}  c5 {[%clk 0:02:50]} 20. Ra1 {[%clk 0:02:11]}  Rxa1+ {[%clk 0:02:44]} 21. Nxa1 {[%clk 0:02:11]}  Nxe4 {[%clk 0:02:44]} 22. Qd1 {[%clk 0:01:59]}  Nef6 {[%clk 0:02:35]} 23. Bxb7 {[%clk 0:01:51]}  Qxb7 {[%clk 0:02:35]} 24. Nb3 {[%clk 0:01:52]}  c4 {[%clk 0:02:26]} 25. Nc5 {[%clk 0:01:45]}  Nxc5 {[%clk 0:02:22]} 26. Qd8+ {[%clk 0:01:44]}  Bf8 {[%clk 0:02:14]} 27. Bxc5 {[%clk 0:01:34]}  Nd7 {[%clk 0:02:14]} 28. Bd6 {[%clk 0:01:17]}  Kg7 {[%clk 0:02:11]} 29. Bxf8+ {[%clk 0:01:02]}  Nxf8 {[%clk 0:02:12]} 30. Qd6 {[%clk 0:01:00]}  Qe4 {[%clk 0:02:10]} 31. Qd2 {[%clk 0:00:52]}  Ne6 {[%clk 0:02:08]} 32. Kf1 {[%clk 0:00:44]}  b3 {[%clk 0:02:05]} 33. cxb3 {[%clk 0:00:37]}  cxb3 {[%clk 0:02:05]} 34. Qd1 {[%clk 0:00:29]}  Qh1+ {[%clk 0:01:53]} 35. Ng1 {[%clk 0:00:29]}  Nd4 {[%clk 0:01:53]} 36. Qd3 {[%clk 0:00:25]}  h5 {[%clk 0:01:50]} 37. Qe3 {[%clk 0:00:24]}  Qd5 {[%clk 0:01:48]} 38. Ne2 {[%clk 0:00:20]}  Qb5 {[%clk 0:01:43]} 39. Qd2 {[%clk 0:00:17]}  Qc4 {[%clk 0:01:39]} 40. Qd1 {[%clk 0:00:18]}  Qc2 {[%clk 0:01:30]} 41. Ke1 {[%clk 0:00:14]}  Nf3+ {[%clk 0:01:29]} 0-1


[Site "https://www.chess.com"]

[Event "Titled Tuesday Blitz June 13 Early 2023"]
[White "Cruz Mendez, Jean Marco"]
[Black "Ilamparthi A R"]
[WhiteFideId "3526402"]
[BlackFideId "45015775"]
[WhiteElo "2064"]
[BlackElo "2348"]
[Result "0-1"]
[Round "3"]
[TimeControl "180+2"]
[Date "2023.06.13"]
[WhiteClock "0:00:21"]
[BlackClock "0:01:19"]
[Board "77"]

1. Nf3 {[%clk 0:03:00]}  Nf6 {[%clk 0:02:58]} 2. b3 {[%clk 0:02:59]}  g6 {[%clk 0:02:58]} 3. Bb2 {[%clk 0:03:00]}  Bg7 {[%clk 0:02:58]} 4. e3 {[%clk 0:03:01]}  O-O {[%clk 0:02:59]} 5. Be2 {[%clk 0:03:01]}  d6 {[%clk 0:02:50]} 6. d4 {[%clk 0:03:00]}  Nbd7 {[%clk 0:02:46]} 7. O-O {[%clk 0:03:00]}  e5 {[%clk 0:02:45]} 8. dxe5 {[%clk 0:03:01]}  Ng4 {[%clk 0:02:45]} 9. c4 {[%clk 0:03:01]}  Ngxe5 {[%clk 0:02:44]} 10. Nxe5 {[%clk 0:03:01]}  Nxe5 {[%clk 0:02:45]} 11. Nc3 {[%clk 0:03:01]}  Re8 {[%clk 0:02:37]} 12. Qd2 {[%clk 0:02:59]}  a5 {[%clk 0:02:31]} 13. a3 {[%clk 0:02:53]}  h5 {[%clk 0:02:30]} 14. Rad1 {[%clk 0:02:52]}  Bg4 {[%clk 0:02:28]} 15. f3 {[%clk 0:02:47]}  Be6 {[%clk 0:02:26]} 16. e4 {[%clk 0:02:46]}  h4 {[%clk 0:02:22]} 17. Nd5 {[%clk 0:02:39]}  c6 {[%clk 0:02:11]} 18. Ne3 {[%clk 0:02:26]}  Qb6 {[%clk 0:02:05]} 19. Rb1 {[%clk 0:01:24]}  d5 {[%clk 0:01:27]} 20. Bd4 {[%clk 0:01:13]}  Nxf3+ {[%clk 0:01:25]} 21. Rxf3 {[%clk 0:01:07]}  Bxd4 {[%clk 0:01:23]} 22. exd5 {[%clk 0:00:21]}  Bxd5 {[%clk 0:01:19]} 0-1


[Site "https://www.chess.com"]